bitfinex/quotes_SOLUSD_20250527
["timestamp","ask_amount","ask_price","bid_price","bid_amount"]
[1748362266460,3.94106619,177.62,177.61,34.80944879]
[1748362267260,3.94106619,177.62,177.6,34.80944879]
[1748362267553,2.81506687,177.62,177.6,34.80944879]
[1748362267760,34.80944879,177.61,177.59,9.2]
[1748362269570,1.12612612,177.6,177.59,9.2]
[1748362275852,3.94106619,177.62,177.59,9.2]
[1748362277267,25.32059736,177.62,177.59,9.2]
[1748362277773,21.37953117,177.61,177.59,9.2]
[1748362277948,1.12612612,177.6,177.59,9.2]
[1748362278493,22.50565729,177.6,177.59,9.2]
[1748362278682,1.12612612,177.6,177.59,9.2]
[1748362279359,22.50565729,177.6,177.59,9.2]
[1748362279763,25.3209726,177.6,177.55,60.9]
[1748362279966,1.12625295,177.58,177.55,60.9]
[1748362280879,1.12625295,177.58,177.53,26.0]
[1748362280880,3.94188534,177.58,177.53,26.0]
[1748362281086,21.37953117,177.55,177.51,89.0]
[1748362281287,21.37953117,177.55,177.51,149.9]
[1748362281593,21.37953117,177.56,177.51,149.92]
[1748362281964,3.94255138,177.55,177.51,149.92]
[1748362282171,3.94255138,177.55,177.52,21.37953117]
[1748362282373,3.94255138,177.55,177.54,26.0]
[1748362282374,1.12644325,177.55,177.54,26.0]
[1748362282693,1.12644325,177.55,177.54,47.37953117]
[1748362283214,1.12644325,177.55,177.54,26.0]
[1748362284084,1.12631638,177.57,177.54,26.0]
[1748362284893,21.37953117,177.56,177.54,26.0]
[1748362285092,21.37953117,177.55,177.51,60.92]
[1748362285295,21.37953117,177.55,177.51,26.0]
[1748362285796,21.37953117,177.55,177.5,137.25953117]
[1748362286000,21.37953117,177.55,177.51,26.0]
[1748362286190,22.50603787,177.54,177.51,26.0]
[1748362286800,1.1265067,177.54,177.51,26.0]
[1748362287176,1.1265067,177.54,177.53,21.37953117]
[1748362287683,1.1265067,177.54,177.52,21.37953117]
[1748362289102,1.1265067,177.54,177.52,26.0]
[1748362289103,21.37953117,177.54,177.52,26.0]
[1748362289397,24.19578902,177.55,177.52,26.0]
[1748362290500,25.32223227,177.55,177.52,26.0]
[1748362290709,21.37953117,177.54,177.52,26.0]
[1748362291295,25.32223227,177.55,177.52,26.0]
[1748362291695,3.9427011,177.55,177.52,47.37953117]
[1748362291900,3.9427011,177.55,177.52,26.0]
[1748362292205,3.9427011,177.55,177.52,47.37953117]
[1748362292505,2.81625785,177.55,177.52,47.37953117]
[1748362292713,2.81625785,177.55,177.52,26.0]
[1748362293598,3.9427011,177.55,177.49,44.12]
[1748362293804,3.9427011,177.55,177.5,47.37953117]
[1748362294005,21.37953117,177.54,177.49,9.2]
[1748362294225,21.37953117,177.52,177.49,9.2]
[1748362295522,21.37953117,177.5,177.47,0.16]
[1748362295820,21.37953117,177.48,177.47,0.16]
[1748362297701,22.5064187,177.48,177.47,0.16]
[1748362299715,19.77653639,177.48,177.47,0.16]
[1748362300046,62.6777603,177.48,177.47,0.16]
[1748362301817,19.91869796,177.48,177.47,0.16]
[1748362302017,1.12688753,177.48,177.47,0.16]
[1748362302223,22.5064187,177.48,177.47,0.16]
[1748362302631,1.12688753,177.48,177.47,0.16]
[1748362302941,22.5064187,177.48,177.47,0.16]
[1748362303522,1.12688753,177.48,177.47,0.16]
[1748362303726,22.5064187,177.48,177.47,0.16]
[1748362304506,1.12682404,177.49,177.47,0.16]
[1748362304909,21.37953117,177.48,177.47,0.16]
[1748362305831,1.12682404,177.49,177.47,0.16]
[1748362306136,21.37953117,177.48,177.47,0.16]
[1748362306651,22.5064187,177.48,177.47,0.16]
[1748362312448,1.12688753,177.48,177.47,0.16]
[1748362314577,22.5064187,177.48,177.47,0.16]
[1748362315878,1.12688753,177.48,177.47,0.16]
[1748362316959,22.5064187,177.48,177.47,0.16]
[1748362317659,1.12688753,177.48,177.47,0.16]
[1748362319994,1.12688753,177.48,177.47,21.53953117]
[1748362320305,2.81639127,177.54,177.47,136.53953117]
[1748362320458,3.94289797,177.54,177.51,21.37953117]
[1748362320656,25.32242914,177.54,177.48,123.94]
[1748362320995,25.32242914,177.54,177.5,21.37953117]
[1748362321560,30.95496265,177.54,177.49,21.37953117]
[1748362321768,9.57543148,177.54,177.48,145.31953117]
[1748362321969,21.37953117,177.52,177.48,145.31953117]
[1748362322363,21.37953117,177.53,177.48,145.31953117]
[1748362322881,3.94321765,177.52,177.48,145.31953117]
[1748362324215,25.32274882,177.52,177.48,123.94]
[1748362324386,21.37953117,177.49,177.47,0.16]
[1748362324594,21.37953117,177.48,177.47,0.16]
[1748362324787,3.94321765,177.52,177.47,21.53953117]
[1748362324996,3.94321765,177.52,177.49,21.37953117]
[1748362325792,3.94321765,177.52,177.48,34.92]
[1748362325793,3.94321765,177.52,177.5,21.37953117]
[1748362326122,2.81658404,177.52,177.5,21.37953117]
[1748362326884,2.81658404,177.52,177.49,9.2]
[1748362327126,2.81658404,177.52,177.5,21.37953117]
[1748362327694,1.1265067,177.54,177.51,21.37953117]
[1748362328010,2.81608972,177.56,177.5,26.0]
[1748362328011,2.81608972,177.56,177.53,21.37953117]
[1748362328640,1.12631638,177.57,177.55,21.37953117]
[1748362328785,1.12631638,177.57,177.53,26.0]
[1748362328786,1.12631638,177.57,177.56,91.49953117]
[1748362329289,30.95322041,177.57,177.51,9.2]
[1748362329493,18.64964886,177.56,177.48,30.57953117]
[1748362329727,21.37953117,177.53,177.48,30.57953117]
[1748362330088,3.94321765,177.52,177.48,30.57953117]
[1748362330508,1.12663361,177.52,177.51,21.37953117]
[1748362331418,1.12663361,177.52,177.5,21.37953117]
[1748362332094,3.94277345,177.54,177.5,21.37953117]
[1748362332297,3.94277345,177.54,177.51,21.37953117]
[1748362334123,1.12644325,177.55,177.53,21.37953117]
[1748362334423,1.12644325,177.55,177.52,56.29953117]
[1748362335215,22.50597442,177.55,177.52,34.92]
[1748362335508,1.12644325,177.55,177.52,56.29953117]
[1748362336111,3.94232934,177.56,177.52,56.29953117]
[1748362337601,3.94232934,177.56,177.52,145.29953117]
[1748362337918,25.32186051,177.56,177.52,123.92]
[1748362338114,5.63158191,177.57,177.52,123.92]
[1748362338322,21.37953117,177.56,177.52,123.92]
[1748362338534,21.37953117,177.57,177.52,145.29953117]
[1748362338733,25.3209726,177.6,177.55,21.37953117]
[1748362340018,25.3209726,177.6,177.56,56.29953117]
[1748362340415,3.94144143,177.6,177.57,21.37953117]
[1748362340618,3.94144143,177.6,177.56,56.29953117]
[1748362340821,3.94144143,177.6,177.57,21.37953117]
[1748362341022,1.12612612,177.6,177.59,21.37953117]
[1748362342148,1.12612612,177.6,177.58,21.37953117]
[1748362342334,3.94099763,177.62,177.59,47.37953117]
[1748362342727,3.94099763,177.62,177.6,34.92]
[1748362343037,3.94099763,177.62,177.6,56.29953117]
[1748362343247,1.12599932,177.62,177.61,21.37953117]
[1748362344314,5.62764117,177.7,177.61,21.37953117]
[1748362344540,5.62764117,177.7,177.63,21.37953117]
[1748362344743,21.37953117,177.68,177.63,21.37953117]
[1748362345220,8.38534792,177.7,177.63,21.37953117]
[1748362345421,21.37953117,177.68,177.63,21.37953117]
[1748362346039,21.37953117,177.66,177.63,26.0]
[1748362346238,21.37953117,177.64,177.61,34.92]
[1748362346452,21.37953117,177.64,177.61,60.92]
[1748362346658,25.31986327,177.65,177.61,60.92]
[1748362347459,3.9403321,177.65,177.62,21.37953117]
[1748362348333,2.81452293,177.65,177.62,21.37953117]
[1748362350027,2.81452293,177.65,177.63,21.37953117]
[1748362350258,1.1257458,177.66,177.64,47.37953117]
[1748362350464,2.81405496,177.68,177.65,21.37953117]
[1748362350764,2.81405496,177.68,177.66,21.37953117]
[1748362351357,2.81405496,177.68,177.65,110.37953117]
[1748362351559,2.81405496,177.68,177.65,89.0]
[1748362352165,21.37953117,177.67,177.65,89.0]
[1748362352455,22.50527697,177.66,177.65,89.0]
[1748362354470,2.81405496,177.68,177.65,89.0]
[1748362354771,21.37953117,177.66,177.65,89.0]
[1748362354950,24.19358613,177.68,177.65,89.0]
[1748362355349,24.19358613,177.68,177.62,47.37953117]
[1748362355572,2.81405496,177.68,177.64,21.37953117]
[1748362356589,3.93967405,177.68,177.64,21.37953117]
[1748362356753,25.31920522,177.68,177.63,21.37953117]
[1748362357250,3.93967405,177.68,177.64,21.37953117]
[1748362358478,21.37953117,177.68,177.62,26.0]
[1748362358678,21.37953117,177.67,177.62,47.37953117]
[1748362358970,21.37953117,177.67,177.62,82.27953117]
[1748362359176,21.37953117,177.68,177.63,21.37953117]
[1748362360464,3.93988855,177.67,177.62,60.9]
[1748362360777,21.37953117,177.66,177.61,110.37953117]
[1748362360980,21.37953117,177.65,177.61,89.0]
[1748362361360,21.37953117,177.64,177.61,89.0]
[1748362361560,21.37953117,177.64,177.6,35.2]
[1748362361807,9.56830077,177.67,177.6,9.2]
[1748362361955,21.37953117,177.64,177.6,9.2]
[1748362362583,21.37953117,177.62,177.6,9.2]
[1748362363877,22.5054671,177.63,177.6,9.2]
[1748362364265,1.12593593,177.63,177.6,9.2]
[1748362364798,22.5054671,177.63,177.6,9.2]
[1748362366768,1.12593593,177.63,177.6,30.57953117]
[1748362368300,1.12593593,177.63,177.62,21.37953117]
[1748362368492,21.37953117,177.66,177.62,34.9]
[1748362369697,9.56830077,177.67,177.62,34.9]
[1748362369905,30.94783194,177.67,177.62,56.27953117]
[1748362370483,21.37953117,177.68,177.63,21.37953117]
[1748362370884,9.56668541,177.7,177.65,21.37953117]
[1748362371085,21.37953117,177.69,177.64,21.37953117]
[1748362371302,21.37953117,177.68,177.63,47.37953117]
[1748362371495,9.56668541,177.7,177.63,26.0]
[1748362371496,21.37953117,177.66,177.63,26.0]
[1748362372108,21.37953117,177.66,177.61,35.18]
[1748362372392,15.19414742,177.7,177.61,35.18]
[1748362372393,1.12587255,177.64,177.61,35.18]
[1748362372883,1.12587255,177.64,177.61,56.55953117]
[1748362375405,21.37953117,177.66,177.61,9.18]
[1748362375783,21.37953117,177.65,177.61,9.18]
[1748362376008,21.37953117,177.62,177.61,9.18]
[1748362376206,21.37953117,177.63,177.61,9.18]
[1748362376391,18.64964886,177.66,177.61,9.18]
[1748362376593,21.37953117,177.64,177.61,9.18]
[1748362377290,1.12593593,177.63,177.61,9.18]
[1748362377807,1.12593593,177.63,177.61,30.55953117]
[1748362379301,9.56776226,177.68,177.62,21.37953117]
[1748362379621,9.56776226,177.68,177.63,21.37953117]
[1748362380125,3.93966681,177.68,177.64,21.37953117]
[1748362380816,3.93966681,177.68,177.65,21.37953117]
[1748362381326,3.93966681,177.68,177.64,21.37953117]
[1748362381534,21.37953117,177.67,177.62,123.9]
[1748362381897,21.37953117,177.67,177.62,145.27953117]
[1748362382520,3.93966681,177.68,177.63,21.37953117]
[1748362383228,3.93966681,177.68,177.64,21.37953117]
[1748362383436,3.93966681,177.68,177.65,21.37953117]
[1748362384049,3.93966681,177.68,177.64,21.37953117]
[1748362384958,3.93966681,177.68,177.65,21.37953117]
[1748362385459,3.93878009,177.72,177.67,21.37953117]
[1748362385789,3.93878009,177.72,177.71,21.37953117]
[1748362385952,1.12536574,177.72,177.71,21.37953117]
[1748362386588,2.81255389,177.78,177.71,21.37953117]
[1748362386804,2.81255389,177.78,177.74,21.37953117]
[1748362387572,2.81255389,177.78,177.76,21.37953117]
[1748362387573,3.93753982,177.78,177.76,21.37953117]
[1748362387795,3.93753982,177.78,177.74,9.18]
[1748362388097,3.93753982,177.78,177.74,30.55953117]
[1748362388986,1.12498593,177.78,177.77,21.37953117]
[1748362389866,2.81209097,177.81,177.77,21.37953117]
[1748362389867,3.9368871,177.81,177.77,21.37953117]
[1748362390780,3.9368871,177.81,177.78,21.37953117]
[1748362391016,1.12479613,177.81,177.8,21.37953117]
[1748362392071,3.93621849,177.84,177.8,34.75022275]
[1748362392281,34.75022275,177.83,177.78,69.67022275]
[1748362392472,34.75022275,177.83,177.78,34.92]
[1748362392682,34.75022275,177.83,177.78,69.67022275]
[1748362392890,9.55925042,177.84,177.78,69.67022275]
[1748362393071,3.93621849,177.84,177.79,34.75022275]
[1748362393271,3.93621849,177.84,177.8,34.75022275]
[1748362393788,3.93621849,177.84,177.82,34.75022275]
[1748362394081,2.81161211,177.84,177.81,34.75022275]
[1748362394671,2.81161211,177.84,177.82,34.75022275]
[1748362395174,2.81161211,177.84,177.81,34.75022275]
[1748362395571,34.75022275,177.82,177.8,9.18]
[1748362395971,1.12479613,177.81,177.8,9.18]
[1748362397089,1.12479613,177.81,177.8,43.93022275]
[1748362397392,1.12479613,177.81,177.8,9.18]
[1748362397688,1.12479613,177.81,177.73,178.3264389]
[1748362397689,38.6870092,177.81,177.74,9.18]
[1748362397891,34.75022275,177.8,177.75,34.75022275]
[1748362398185,3.93722931,177.79,177.75,89.0]
[1748362398597,3.93722931,177.79,177.75,123.75022275]
[1748362398897,3.93722931,177.79,177.76,34.75022275]
[1748362398898,1.12492266,177.79,177.76,34.75022275]
[1748362399094,1.12492266,177.79,177.76,60.75022275]
[1748362400074,1.12492266,177.79,177.77,34.75022275]
[1748362400280,1.12479613,177.81,177.77,34.75022275]
[1748362400595,1.12479613,177.81,177.78,34.96]
[1748362400898,1.12479613,177.81,177.78,123.96]
[1748362401391,35.87501888,177.81,177.78,123.96]
[1748362402285,34.75022275,177.79,177.78,89.0]
[1748362404303,35.87514541,177.79,177.78,89.0]
[1748362405606,35.87514541,177.79,177.76,26.0]
[1748362405807,34.75022275,177.78,177.76,26.0]
[1748362406495,34.75022275,177.77,177.74,9.18]
[1748362406696,34.75022275,177.75,177.74,9.18]
[1748362406906,3.93722931,177.79,177.74,9.18]
[1748362407091,34.75022275,177.75,177.74,9.18]
[1748362407608,35.87539855,177.75,177.74,9.18]
[1748362410713,38.68833807,177.75,177.71,89.0]
[1748362411038,34.75022275,177.73,177.71,89.0]
[1748362411332,34.75022275,177.73,177.7,149.92]
[1748362411696,34.75022275,177.73,177.7,123.92]
[1748362411926,21.35005362,177.73,177.7,123.92]
[1748362412123,1.12536574,177.72,177.7,123.92]
[1748362412532,1.12536574,177.72,177.7,145.27005362]
[1748362413927,1.12536574,177.72,177.71,21.35005362]
[1748362414144,3.93811532,177.75,177.71,21.35005362]
[1748362414603,3.93811532,177.75,177.7,145.27005362]
[1748362414604,25.28816894,177.75,177.7,145.27005362]
[1748362415324,3.93811532,177.75,177.71,21.35005362]
[1748362416040,3.93811532,177.75,177.72,26.0]
[1748362416216,21.35005362,177.78,177.73,47.35005362]
[1748362416407,21.35005362,177.78,177.73,136.35005362]
[1748362417119,21.35005362,177.77,177.73,115.0]
[1748362417327,1.12511251,177.76,177.73,115.0]
[1748362417719,21.35005362,177.74,177.73,89.0]
[1748362417916,21.35005362,177.74,177.71,115.0]
[1748362418119,21.35005362,177.75,177.71,115.0]
[1748362419452,1.12523911,177.74,177.71,115.0]
[1748362420415,22.47529273,177.74,177.71,115.0]
[1748362420937,1.12523911,177.74,177.71,136.35005362]
[1748362421432,3.93811532,177.75,177.71,136.35005362]
[1748362421743,25.28816894,177.75,177.71,115.0]
[1748362423043,3.93811532,177.75,177.71,136.35005362]
[1748362424326,25.28816894,177.75,177.71,115.0]
[1748362425346,3.93811532,177.75,177.71,136.35005362]
[1748362428324,3.93811532,177.75,177.73,21.35005362]
[1748362428325,1.1251758,177.75,177.73,21.35005362]
[1748362428593,1.1251758,177.75,177.72,21.35005362]
[1748362428853,3.93811532,177.75,177.71,115.0]
[1748362429043,25.28816894,177.75,177.71,149.88]
[1748362429351,21.35005362,177.74,177.71,60.88]
[1748362429663,25.28816894,177.75,177.71,60.88]
[1748362429856,25.28816894,177.75,177.71,26.0]
[1748362430029,3.93811532,177.75,177.71,47.35005362]
[1748362431053,3.93811532,177.75,177.72,21.35005362]
[1748362431629,3.93811532,177.75,177.73,21.35005362]
[1748362432346,1.12504922,177.77,177.73,21.35005362]
[1748362432549,1.12504922,177.77,177.73,56.23005362]
[1748362433031,1.12504922,177.77,177.74,21.35005362]
[1748362434343,3.93753671,177.78,177.74,21.35005362]
[1748362434659,3.93753671,177.78,177.74,110.35005362]
[1748362435177,25.28759033,177.78,177.74,89.0]
[1748362435649,21.35005362,177.76,177.74,89.0]
[1748362436551,1.1251758,177.75,177.74,89.0]
[1748362436925,22.47522942,177.75,177.74,89.0]
[1748362438231,22.47522942,177.75,177.71,26.0]
[1748362438232,25.28816894,177.75,177.71,26.0]
[1748362438459,22.47535604,177.73,177.71,26.0]
[1748362440332,1.12530242,177.73,177.71,26.0]
[1748362441344,5.62542961,177.77,177.71,26.0]
[1748362441859,21.35005362,177.75,177.71,26.0]
[1748362442253,21.35005362,177.74,177.71,26.0]
[1748362442766,21.35005362,177.73,177.71,26.0]
[1748362443649,1.12536574,177.72,177.71,26.0]
[1748362446151,18.79181043,177.72,177.56,10.0]
[1748362446375,21.35005362,177.65,177.59,9.18]
[1748362446588,21.35005362,177.64,177.58,9.18]
[1748362446885,21.35005362,177.62,177.57,21.35005362]
[1748362447041,21.35005362,177.62,177.59,26.0]
[1748362447241,21.35005362,177.63,177.59,26.0]
[1748362448252,1.12599932,177.62,177.59,26.0]
[1748362448852,1.12599932,177.62,177.59,47.35005362]
[1748362449048,1.12599932,177.62,177.6,21.35005362]
[1748362449358,1.12599932,177.62,177.61,21.35005362]
[1748362449870,1.12599932,177.62,177.6,21.35005362]
[1748362450257,21.35005362,177.64,177.6,21.35005362]
[1748362451254,1.12593593,177.63,177.59,26.0]
[1748362451455,1.12593593,177.63,177.6,21.35005362]
[1748362452253,1.12593593,177.63,177.59,47.35005362]
[1748362452655,25.29082938,177.63,177.61,26.0]
[1748362452871,21.35005362,177.62,177.59,26.0]
[1748362453983,25.29082938,177.63,177.59,26.0]
[1748362455058,25.29082938,177.63,177.59,47.35005362]
[1748362455251,3.94077576,177.63,177.59,47.35005362]
[1748362455777,1.12593593,177.63,177.61,47.35005362]
[1748362456558,1.12593593,177.63,177.61,26.0]
[1748362457153,1.12587255,177.64,177.61,26.0]
[1748362457571,22.47592617,177.64,177.61,26.0]
[1748362460756,1.12587255,177.64,177.61,26.0]
[1748362462168,1.12587255,177.64,177.63,21.35005362]
[1748362462483,2.81400007,177.69,177.63,21.35005362]
[1748362462484,21.35005362,177.66,177.63,26.0]
[1748362462854,3.93988855,177.67,177.63,26.0]
[1748362463077,25.28994217,177.67,177.63,26.0]
[1748362463290,3.93988855,177.67,177.63,47.35005362]
[1748362463475,5.62651212,177.73,177.66,47.35005362]
[1748362463476,1.12555574,177.69,177.66,47.35005362]
[1748362463664,2.81334636,177.73,177.67,26.0]
[1748362463868,2.81334636,177.73,177.7,47.35005362]
[1748362464067,95.78411354,177.81,177.71,21.35005362]
[1748362464068,21.35005362,177.76,177.71,21.35005362]
[1748362464296,1.1251758,177.75,177.71,21.35005362]
[1748362464663,3.93811532,177.75,177.72,21.35005362]
[1748362466594,24.16299314,177.75,177.7,136.35005362]
[1748362468181,25.28816894,177.75,177.7,136.35005362]
[1748362469769,25.28816894,177.75,177.62,21.35005362]
[1748362469770,21.35005362,177.71,177.62,21.35005362]
[1748362470070,1.12568244,177.67,177.66,26.0]
[1748362470988,1.12568244,177.67,177.66,47.35005362]
[1748362472486,3.93936448,177.7,177.61,9.18]
[1748362472689,3.93936448,177.7,177.57,21.35005362]
[1748362472690,21.35005362,177.62,177.57,21.35005362]
[1748362472901,21.35005362,177.6,177.56,9.18]
[1748362473560,21.35005362,177.6,177.57,26.0]
[1748362473799,21.35005362,177.61,177.57,26.0]
[1748362474284,1.12612612,177.6,177.57,26.0]
[1748362474473,1.12612612,177.6,177.56,30.53005362]
[1748362474674,3.94144143,177.6,177.57,26.0]
[1748362474871,3.94144143,177.6,177.57,47.35005362]
[1748362475272,1.12612612,177.6,177.58,21.35005362]
[1748362475470,1.12612612,177.6,177.59,26.0]
[1748362476501,1.12599932,177.62,177.59,26.0]
[1748362477064,1.12599932,177.62,177.59,60.83313701]
[1748362478473,1.12599932,177.62,177.59,26.0]
[1748362483371,34.83313701,177.63,177.59,26.0]
[1748362483691,34.83313701,177.63,177.59,60.88]
[1748362483897,34.83313701,177.64,177.59,95.71313701]
[1748362484093,5.62887233,177.66,177.59,95.71313701]
[1748362484395,34.83313701,177.64,177.59,95.71313701]
[1748362485275,1.12593593,177.63,177.59,95.71313701]
[1748362488483,1.12593593,177.63,177.59,184.71313701]
[1748362490900,1.12593593,177.63,177.6,34.83313701]
[1748362491101,34.83313701,177.65,177.6,34.83313701]
[1748362491102,1.12580917,177.65,177.62,60.83313701]
[1748362491307,1.12580917,177.65,177.62,60.88]
[1748362491494,1.12580917,177.65,177.63,34.83313701]
[1748362492512,3.93994949,177.67,177.63,34.83313701]
[1748362493911,1.12568244,177.67,177.66,60.83313701]
[1748362494113,1.12568244,177.67,177.66,95.71313701]
[1748362494607,3.93931581,177.7,177.66,95.71313701]
[1748362494809,3.93931581,177.7,177.67,34.83313701]
[1748362495109,3.93931581,177.7,177.66,60.88]
[1748362495314,38.77245282,177.7,177.66,60.88]
[1748362497009,9.56399436,177.75,177.66,60.88]
[1748362497212,34.83313701,177.7,177.66,60.88]
[1748362497915,34.83313701,177.68,177.66,26.0]
[1748362498092,21.36165593,177.69,177.66,26.0]
[1748362498292,21.36165593,177.7,177.66,26.0]
[1748362498489,21.36165593,177.71,177.66,47.36165593]
[1748362498716,21.36165593,177.71,177.66,82.24165593]
[1748362499101,3.9392234,177.7,177.66,82.24165593]
[1748362501212,3.9392234,177.7,177.67,21.36165593]
[1748362501592,1.1254924,177.7,177.68,21.36165593]
[1748362501792,1.1254924,177.7,177.69,47.36165593]
[1748362503125,3.93867906,177.73,177.69,47.36165593]
[1748362503492,3.93867906,177.73,177.7,47.36165593]
[1748362503817,3.93867906,177.73,177.7,26.0]
[1748362504119,21.36165593,177.71,177.68,26.0]
[1748362504286,9.56519118,177.73,177.68,26.0]
[1748362504490,3.93867906,177.73,177.68,47.36165593]
[1748362504691,25.30033499,177.73,177.68,47.36165593]
[1748362505514,3.93867906,177.73,177.68,47.36165593]
[1748362505699,25.30033499,177.73,177.68,47.36165593]
[1748362506021,3.93867906,177.73,177.7,47.36165593]
[1748362507518,21.36165593,177.75,177.7,47.36165593]
[1748362508423,9.56291837,177.77,177.7,82.24165593]
[1748362508710,21.36165593,177.76,177.7,82.24165593]
[1748362509311,21.36165593,177.75,177.7,82.24165593]
[1748362509504,3.93833689,177.74,177.7,82.24165593]
[1748362509703,3.93833689,177.74,177.71,21.36165593]
[1748362510324,1.12523911,177.74,177.73,21.36165593]
[1748362510898,1.12523911,177.74,177.7,60.88]
[1748362511207,3.93833689,177.74,177.71,21.36165593]
[1748362511405,3.93833689,177.74,177.71,110.36165593]
[1748362511720,2.81309778,177.74,177.71,110.36165593]
[1748362512516,2.81309778,177.74,177.72,21.36165593]
[1748362515510,2.81274108,177.77,177.74,26.0]
[1748362515712,2.81274108,177.77,177.75,21.36165593]
[1748362515895,2.81274108,177.77,177.74,82.22165593]
[1748362516097,24.17439701,177.77,177.74,34.86]
[1748362516513,24.17439701,177.77,177.73,89.0]
[1748362517521,25.29944623,177.77,177.73,89.0]
[1748362518423,3.9377903,177.77,177.73,110.36165593]
[1748362519121,3.9377903,177.77,177.74,21.36165593]
[1748362519701,2.81274108,177.77,177.74,110.36165593]
[1748362519921,2.81274108,177.77,177.75,21.36165593]
[1748362520295,2.81274108,177.77,177.76,21.36165593]
[1748362520605,2.81274108,177.77,177.75,21.36165593]
[1748362521811,5.62480816,177.79,177.75,21.36165593]
[1748362522020,5.62480816,177.79,177.74,89.0]
[1748362522021,5.62480816,177.79,177.77,21.36165593]
[1748362522220,21.36165593,177.82,177.77,21.36165593]
[1748362522599,9.55969183,177.83,177.77,21.36165593]
[1748362522803,21.36165593,177.82,177.77,21.36165593]
[1748362523225,21.36165593,177.81,177.76,56.22165593]
[1748362523638,21.36165593,177.8,177.76,34.86]
[1748362523936,1.12492266,177.79,177.76,34.86]
[1748362525017,1.12473287,177.82,177.78,21.36165593]
[1748362525211,5.62050359,177.92,177.81,21.36165593]
[1748362525429,8.43075538,177.92,177.83,21.36165593]
[1748362525914,1.1244167,177.87,177.83,21.36165593]
[1748362526419,3.93545847,177.87,177.83,21.36165593]
[1748362527621,3.93545847,177.87,177.84,21.36165593]
[1748362528418,3.93545847,177.87,177.83,21.36165593]
[1748362530432,3.93545847,177.87,177.84,21.36165593]
[1748362530630,3.93545847,177.87,177.81,34.94]
[1748362531143,2.81104177,177.87,177.81,34.94]
[1748362531511,2.81104177,177.87,177.83,21.36165593]
[1748362532345,25.2971144,177.87,177.82,21.36165593]
[1748362532633,25.2971144,177.87,177.78,21.36165593]
[1748362532634,21.36165593,177.83,177.78,21.36165593]
[1748362532813,3.93545847,177.87,177.78,21.36165593]
[1748362533023,3.93545847,177.87,177.77,34.92]
[1748362533252,10.0,178.04,177.79,0.14216157]
[1748362533416,12.5,178.06,177.82,0.14216157]
[1748362533607,12.5,178.06,177.91,21.36165593]
[1748362533938,28.64964886,178.05,177.91,21.36165593]
[1748362534138,21.36165593,178.02,177.89,39.18]
[1748362534351,12.5,178.06,177.93,21.36165593]
[1748362534352,3.93236334,178.01,177.93,21.36165593]
[1748362534514,3.93236334,178.01,177.89,39.18]
[1748362534515,21.36165593,177.98,177.89,39.18]
[1748362534844,18.64964886,178.0,177.92,21.36165593]
[1748362535016,18.64964886,178.0,177.89,39.18]
[1748362535218,21.36165593,177.99,177.89,39.18]
[1748362535437,21.36165593,177.99,177.94,21.36165593]
[1748362535743,3.93236334,178.01,177.94,21.36165593]
[1748362535921,34.69512498,178.0,177.94,34.69512498]
[1748362536235,1.12365863,177.99,177.9,11.96]
[1748362537015,1.12365863,177.99,177.95,34.69512498]
[1748362537235,35.81878361,177.99,177.94,34.69512498]
[1748362538142,34.69512498,177.98,177.93,34.69512498]
[1748362538347,34.69512498,177.99,177.9,11.96]
[1748362538533,34.69512498,177.99,177.94,34.69512498]
[1748362539258,3.93236334,178.01,177.95,34.69512498]
[1748362539549,34.69512498,177.98,177.9,11.96]
[1748362539720,34.69512498,177.98,177.93,34.69512498]
[1748362540252,1.1237849,177.97,177.93,34.69512498]
[1748362540548,1.1237849,177.97,177.94,34.69512498]
[1748362540931,1.1237849,177.97,177.9,51.56]
[1748362541131,1.1237849,177.97,177.92,34.69512498]
[1748362541339,35.81890988,177.97,177.92,34.69512498]
[1748362541524,34.69512498,177.96,177.9,11.96]
[1748362541840,34.69512498,177.96,177.93,26.0]
[1748362542046,35.81890988,177.97,177.93,26.0]
[1748362542434,3.93324716,177.97,177.93,26.0]
[1748362542745,34.69512498,177.96,177.91,26.0]
[1748362542937,3.93324716,177.97,177.93,34.69512498]
[1748362544650,34.69512498,177.98,177.93,34.69512498]
[1748362545075,34.69512498,177.98,177.91,26.0]
[1748362545366,3.93236334,178.01,177.91,60.69512498]
[1748362545367,34.69512498,177.96,177.91,60.69512498]